bitfinex/quotes_SOLUSD_20240930
["timestamp","ask_amount","ask_price","bid_price","bid_amount"]
[1727663249413,25.18034288,157.54,157.5,30.0]
[1727663249718,23.776884,157.55,157.51,1.26962861]
[1727663249909,23.776884,157.55,157.5,6.3488]
[1727663249910,30.124084,157.55,157.5,6.3488]
[1727663252701,30.124084,157.55,157.51,1.26954601]
[1727663253327,30.124084,157.55,157.5,6.3488]
[1727663254422,23.776884,157.56,157.51,6.3486]
[1727663254610,6.3467,157.57,157.52,6.3482]
[1727663254809,6.3475,157.55,157.5,15.8721]
[1727663256026,6.3475,157.55,157.5,22.2212]
[1727663257518,24.027864,157.59,157.5,15.8721]
[1727663257709,6.3483,157.53,157.48,6.3499]
[1727663257905,6.3483,157.53,157.49,30.0]
[1727663257906,23.776884,157.52,157.49,30.0]
[1727663258131,23.776884,157.52,157.48,6.3499]
[1727663258727,30.125384,157.52,157.47,22.2263]
[1727663258945,6.3488,157.51,157.48,30.0]
[1727663259733,23.776884,157.52,157.48,30.0]
[1727663259734,30.125284,157.52,157.49,1.26981317]
[1727663259916,23.776884,157.52,157.49,1.26981317]
[1727663260232,23.776884,157.52,157.48,37.61960848]
[1727663261332,16.11758,157.57,157.48,31.26970848]
[1727663261535,15.2397,157.62,157.53,15.8692]
[1727663261713,15.2397,157.62,157.54,1.13550725]
[1727663262031,6.346,157.58,157.53,22.2169]
[1727663262238,6.3456,157.59,157.54,6.3475]
[1727663262745,6.346,157.58,157.53,22.2171]
[1727663264051,23.776884,157.58,157.54,6.3475]
[1727663264927,1.40345888,157.62,157.53,15.8692]
[1727663265247,6.3443,157.62,157.57,6.3463]
[1727663265549,6.3455,157.6,157.55,15.8671]
[1727663265950,1.40345888,157.65,157.55,15.8671]
[1727663266244,1.40345888,157.65,157.57,6.3463]
[1727663267238,6.3444,157.62,157.57,6.3463]
[1727663267429,1.40345888,157.61,157.55,15.8671]
[1727663267743,6.3456,157.59,157.56,30.0]
[1727663268237,6.3456,157.59,157.55,15.8671]
[1727663269437,6.346,157.58,157.54,6.3474]
[1727663269653,6.3471,157.56,157.52,15.4895]
[1727663271538,6.3464,157.57,157.52,21.8378]
[1727663275161,23.53525888,157.62,157.52,15.4895]
[1727663275371,6.3472,157.55,157.52,15.4895]
[1727663275543,6.3472,157.55,157.5,6.3488]
[1727663275741,6.3472,157.55,157.51,30.0]
[1727663277346,23.776884,157.58,157.51,45.85336848]
[1727663277568,6.3467,157.57,157.51,61.72466848]
[1727663277752,6.3467,157.57,157.52,6.3483]
[1727663280641,25.18034288,157.58,157.51,31.72466848]
[1727663280843,23.776884,157.56,157.48,31.7591]
[1727663281048,6.3483,157.53,157.48,38.109]
[1727663281255,23.776884,157.52,157.48,38.109]
[1727663281460,6.3483,157.53,157.48,38.109]
[1727663281856,6.3483,157.53,157.49,30.0]
[1727663282856,0.12549,157.57,157.5,1.26970154]
[1727663283050,6.3472,157.55,157.5,7.61850154]
[1727663283250,6.3468,157.56,157.52,6.3483]
[1727663283463,6.3468,157.56,157.53,1.26944184]
[1727663283665,16.3055,157.6,157.53,1.26944184]
[1727663283858,6.3464,157.57,157.53,1.26944184]
[1727663284147,6.3464,157.57,157.53,7.61734184]
[1727663284349,6.2701,157.62,157.54,1.13564731]
[1727663284561,6.3455,157.59,157.54,6.3475]
[1727663285271,6.3452,157.6,157.55,7.61634126]
[1727663285479,31.037,157.64,157.54,6.3475]
[1727663285480,6.346,157.58,157.54,6.3475]
[1727663285684,6.346,157.58,157.53,15.4693]
[1727663285981,6.346,157.58,157.53,21.8169]
[1727663287669,23.776884,157.57,157.53,15.4693]
[1727663287966,7.75025888,157.56,157.52,15.8703]
[1727663288171,6.3468,157.56,157.53,30.0]
[1727663288477,30.124184,157.55,157.53,30.0]
[1727663288675,30.124184,157.55,157.5,6.3488]
[1727663288876,30.124184,157.55,157.51,4.34572984]
[1727663289185,30.124184,157.55,157.51,6.3487]
[1727663289386,30.124184,157.55,157.51,10.69443139]
[1727663289567,30.124184,157.55,157.51,6.3487]
[1727663289759,6.3476,157.54,157.5,4.34573139]
[1727663289965,6.3476,157.54,157.5,6.3491]
[1727663290775,7.75135888,157.53,157.49,31.125]
[1727663291483,6.3479,157.53,157.49,31.125]
[1727663291886,23.776884,157.55,157.45,16.66535708]
[1727663291887,1.40345888,157.52,157.46,15.8768]
[1727663292092,1.40345888,157.52,157.45,0.8119886]
[1727663292093,6.3507,157.47,157.45,0.8119886]
[1727663292678,23.776884,157.47,157.45,0.8119886]
[1727663295291,6.35,157.48,157.45,0.8119886]
[1727663295491,6.35,157.48,157.45,2.08206391]
[1727663295698,6.35,157.48,157.45,0.8119886]
[1727663296505,31.53074288,157.47,157.45,0.8119886]
[1727663296693,6.3508,157.46,157.45,0.8119886]
[1727663296873,31.53114288,157.46,157.45,0.8119886]
[1727663299292,31.78212288,157.46,157.45,0.8119886]
[1727663299496,30.378664,157.46,157.45,0.8119886]
[1727663301307,30.127684,157.46,157.45,0.8119886]
[1727663301516,6.3508,157.46,157.45,0.8119886]
[1727663302598,30.127284,157.47,157.45,0.8119886]
[1727663302796,131.307854,157.48,157.45,0.8119886]
[1727663303007,6.3504,157.47,157.45,0.8119886]
[1727663303190,131.307854,157.48,157.45,0.8119886]
[1727663305814,131.307854,157.48,157.45,2.08205939]
[1727663306721,131.307854,157.48,157.45,0.8119886]
[1727663307905,137.657854,157.48,157.45,0.8119886]
[1727663308212,31.53114288,157.47,157.45,0.8119886]
[1727663308398,30.127684,157.47,157.45,0.8119886]
[1727663309386,31.53114288,157.47,157.45,0.8119886]
[1727663309916,6.3508,157.46,157.45,0.8119886]
[1727663310095,131.307854,157.48,157.45,0.8119886]
[1727663310096,137.658154,157.48,157.45,0.8119886]
[1727663312531,30.127684,157.46,157.45,0.8119886]
[1727663312819,30.378664,157.46,157.45,0.8119886]
[1727663314002,30.127684,157.46,157.45,0.8119886]
[1727663314204,6.3508,157.46,157.45,0.8119886]
[1727663314399,6.3504,157.47,157.45,0.8119886]
[1727663315812,131.307854,157.48,157.45,0.8119886]
[1727663316015,137.657854,157.48,157.45,0.8119886]
[1727663317134,131.307854,157.48,157.45,0.8119886]
[1727663317726,137.657854,157.48,157.45,0.8119886]
[1727663318018,131.307854,157.48,157.46,6.3507]
[1727663318333,131.307854,157.48,157.45,0.8119886]
[1727663319108,131.307854,157.48,157.45,7.1630886]
[1727663319500,131.307854,157.48,157.45,0.8119886]
[1727663323944,131.307854,157.48,157.46,6.3507]
[1727663324111,131.307854,157.48,157.47,6.3504]
[1727663324310,131.307854,157.48,157.45,0.8119886]
[1727663324512,131.307854,157.48,157.45,7.1630886]
[1727663325631,137.657854,157.48,157.45,0.8119886]
[1727663326015,7.75385888,157.47,157.45,0.8119886]
[1727663326213,6.3504,157.47,157.45,0.8119886]
[1727663327043,7.75385888,157.47,157.45,0.8119886]
[1727663327247,6.3504,157.47,157.45,0.8119886]
[1727663327636,131.307854,157.48,157.45,0.8119886]
[1727663327836,25.43132288,157.47,157.45,0.8119886]
[1727663328022,6.3534,157.4,157.31,15.0198]
[1727663328226,24.027864,157.43,157.31,15.0198]
[1727663328514,23.776884,157.43,157.34,15.8882]
[1727663328713,38.1835,157.47,157.34,15.8882]
[1727663328714,6.3516,157.44,157.38,6.3536]
[1727663329136,6.3524,157.42,157.36,22.2405]
[1727663329338,6.3516,157.44,157.39,6.3536]
[1727663330223,25.18034288,157.45,157.36,31.73946848]
[1727663330444,6.352,157.43,157.37,6.3541]
[1727663330615,7.75545888,157.43,157.37,6.3541]
[1727663331244,6.352,157.43,157.38,6.3538]
[1727663331550,23.776884,157.46,157.39,6.3535]
[1727663332157,23.776884,157.44,157.39,6.3535]
[1727663332747,6.3516,157.44,157.39,6.3535]
[1727663333128,23.776884,157.45,157.36,15.85336848]
[1727663333347,1.40345888,157.44,157.38,15.8841]
[1727663333641,6.3528,157.41,157.36,6.3547]
[1727663333844,0.25098,157.43,157.35,15.888]
[1727663334040,6.3533,157.4,157.35,15.888]
[1727663334241,23.776884,157.39,157.36,30.0]
[1727663334552,6.3532,157.4,157.35,15.888]
[1727663334553,6.3532,157.4,157.35,22.2432]
[1727663336228,6.3528,157.42,157.36,1.27069973]
[1727663336635,6.3528,157.42,157.35,31.74136848]
[1727663336840,6.3528,157.42,157.37,6.3543]
[1727663337045,6.3541,157.38,157.36,30.0]
[1727663337426,6.3541,157.38,157.33,6.98824258]
[1727663339332,6.3544,157.37,157.33,0.63244258]
[1727663339534,6.3544,157.37,157.33,30.63244258]
[1727663340427,23.776884,157.39,157.34,1.27094194]
[1727663340626,30.130484,157.39,157.34,7.62654194]
[1727663341420,30.130484,157.39,157.34,6.3556]
[1727663341623,30.130484,157.39,157.35,1.27082944]
[1727663342946,30.130484,157.39,157.34,6.3556]
[1727663344128,23.776884,157.39,157.34,6.3556]
[1727663344332,6.354,157.38,157.34,6.3556]
[1727663345248,6.354,157.38,157.33,0.63244258]
[1727663345430,6.354,157.38,157.33,6.98824258]
[1727663345626,1.40345888,157.37,157.33,0.63244258]
[1727663345847,23.776884,157.36,157.33,0.63244258]
[1727663346041,7.75895888,157.35,157.33,0.63244258]
[1727663346256,6.3555,157.35,157.33,0.63244258]
[1727663346645,30.131784,157.36,157.33,0.63244258]
[1727663346856,21.552,157.4,157.33,0.63244258]
[1727663347063,6.3544,157.37,157.34,1.27096236]
[1727663347458,6.3544,157.37,157.33,0.63244258]
[1727663348664,1.40345888,157.36,157.33,0.63244258]
[1727663348847,6.3553,157.35,157.33,0.63244258]
[1727663356148,6.3545,157.37,157.33,0.63244258]
[1727663356348,25.18034288,157.38,157.33,0.63244258]
[1727663356645,6.3549,157.36,157.33,0.63244258]
[1727663356854,7.75835888,157.36,157.33,0.63244258]
[1727663357373,23.776884,157.38,157.33,0.63244258]
[1727663357593,6.3545,157.37,157.34,1.27094204]
[1727663357880,6.354,157.38,157.34,1.27094204]
[1727663358377,6.3537,157.39,157.34,7.62634204]
[1727663358879,6.3537,157.39,157.35,6.3552]
[1727663359088,6.3537,157.39,157.36,1.27080088]
[1727663359571,6.3537,157.39,157.34,6.3556]
[1727663360777,23.776884,157.43,157.35,1.27080621]
[1727663361273,37.9679,157.44,157.35,1.27080621]
[1727663361506,6.3531,157.41,157.36,6.3547]
[1727663361797,6.3532,157.4,157.37,1.27067662]
[1727663362168,6.3516,157.44,157.39,6.3536]
[1727663362470,37.447,157.48,157.4,7.623613]
[1727663362471,6.3514,157.45,157.4,7.623613]
[1727663362891,21.571,157.48,157.4,1.270413]
[1727663363083,21.5746,157.52,157.42,15.85336848]
[1727663363292,6.3492,157.5,157.43,1.27001419]
[1727663363503,1.40345888,157.51,157.43,15.8798]
[1727663363792,6.3497,157.49,157.43,22.2316]
[1727663364366,1.40345888,157.5,157.41,6.3525]
[1727663364889,6.3503,157.48,157.42,1.27022203]
[1727663365072,6.3503,157.48,157.43,6.3519]
[1727663365682,1.40345888,157.51,157.42,15.881]
[1727663365892,6.3504,157.47,157.42,15.881]
[1727663366092,6.3508,157.46,157.42,15.881]
[1727663367084,30.127284,157.48,157.42,15.881]
[1727663367403,1.40345888,157.47,157.42,15.881]
[1727663367905,23.776884,157.48,157.42,15.881]
[1727663368078,6.3504,157.47,157.42,15.881]
[1727663368692,131.307854,157.43,157.4,37.60206848]
[1727663368897,131.307854,157.43,157.41,36.3528]
[1727663369997,131.307854,157.43,157.41,6.3528]
[1727663370378,131.307854,157.43,157.42,1.27033394]
[1727663370571,131.307854,157.43,157.41,6.3528]
[1727663372797,131.307854,157.43,157.42,7.62270316]
[1727663373297,131.307854,157.43,157.42,23.47607164]
[1727663373496,131.307854,157.43,157.42,23.72705164]
[1727663374769,131.307854,157.43,157.42,52.45674848]
[1727663375809,77.3207726,157.43,157.42,53.72690094]
[1727663377011,77.3207726,157.43,157.42,73.72690094]
[1727663377209,77.3207726,157.43,157.42,56.60338]
[1727663378583,23.3336912,157.43,157.42,56.60338]
[1727663381518,6.3488,157.51,157.46,6.3507]
[1727663381709,6.3488,157.51,157.48,10.1539347]
[1727663385907,6.3492,157.5,157.46,10.1539347]
[1727663386203,6.3496,157.49,157.46,10.1539347]
[1727663386409,6.3493,157.5,157.46,10.1539347]
[1727663386798,6.3488,157.51,157.47,1.26985994]
[1727663387006,6.3488,157.51,157.47,7.62015994]
[1727663387509,6.3488,157.51,157.46,10.1539347]
[1727663387703,6.3488,157.51,157.46,16.5046347]
[1727663389208,6.3488,157.51,157.47,1.269794]
[1727663391988,6.3488,157.51,157.46,16.5046347]
[1727663395723,15.0265,157.52,157.46,10.1539347]
[1727663396018,25.18034288,157.51,157.45,32.3828347]
[1727663396203,6.3492,157.5,157.45,32.3828347]
[1727663396408,1.40345888,157.49,157.45,10.1539347]
[1727663396710,6.3504,157.47,157.43,10.1539347]
[1727663396923,6.35,157.48,157.44,30.0]
[1727663398106,6.35,157.48,157.43,16.5059347]
[1727663398417,6.35,157.48,157.44,1.27009618]
[1727663399091,30.277084,157.5,157.41,6.3524]
[1727663399314,6.3517,157.44,157.42,30.0]
[1727663400323,6.3517,157.44,157.4,1.27038933]
[1727663400493,6.3517,157.44,157.39,22.2373]
[1727663400689,6.3523,157.43,157.4,30.0]
[1727663401001,6.3523,157.43,157.38,10.1539347]
[1727663401196,6.3524,157.42,157.37,6.354]
[1727663401518,1.40345888,157.44,157.36,42.6345347]
[1727663401696,6.3532,157.4,157.37,30.0]
[1727663401903,0.12549,157.45,157.37,30.0]
[1727663402195,0.25098,157.45,157.37,31.27067418]
[1727663402598,6.3533,157.4,157.36,26.0408347]
[1727663403104,23.776884,157.43,157.37,1.2707112]
[1727663403414,6.3524,157.42,157.37,7.6251112]
[1727663403798,23.776884,157.43,157.38,6.354]
[1727663403799,30.128884,157.43,157.38,6.354]
[1727663404011,30.128884,157.43,157.39,1.27052831]
[1727663404212,0.25098,157.45,157.39,7.62372831]
[1727663404213,6.3515,157.45,157.39,7.62372831]
[1727663404394,6.3517,157.44,157.4,10.1539347]
[1727663404594,1.40345888,157.45,157.38,10.1539347]
[1727663404823,6.3521,157.43,157.38,10.1539347]
[1727663405208,6.3521,157.43,157.38,16.5079347]
[1727663405407,6.3521,157.43,157.39,1.27051905]
[1727663405720,22.5577,157.46,157.4,16.5067347]
[1727663405907,6.3511,157.46,157.4,10.1539347]
[1727663406617,6.3511,157.46,157.41,6.3525]
[1727663406933,6.3511,157.46,157.41,7.62281515]
[1727663408223,6.3512,157.45,157.41,7.62281515]
[1727663408536,6.3512,157.45,157.41,1.27031515]
[1727663408851,6.3487,157.52,157.46,6.3506]
[1727663409009,16.4365,157.54,157.47,11.42380793]
[1727663409335,22.7842,157.54,157.49,6.3492]
[1727663409621,6.3477,157.54,157.5,1.26968285]
[1727663409995,1.40345888,157.56,157.49,22.2226]
[1727663410200,6.3476,157.54,157.49,22.2226]
[1727663410401,6.3481,157.53,157.48,6.35]
[1727663411502,23.776884,157.55,157.46,22.2273]
[1727663411697,6.3492,157.5,157.46,15.8769]
[1727663412225,6.3492,157.5,157.45,6.351]
[1727663412522,6.3492,157.5,157.46,30.0]
[1727663412898,6.3492,157.5,157.45,6.351]
[1727663413295,6.3502,157.48,157.43,15.8799]
[1727663413519,6.3502,157.48,157.44,30.0]
[1727663413699,6.3496,157.49,157.44,30.0]
[1727663413916,16.62829,157.56,157.47,6.3502]
[1727663414108,16.62829,157.56,157.48,6.3496]
[1727663414109,6.3479,157.54,157.48,6.3496]
[1727663414317,6.348,157.53,157.48,6.3496]
[1727663415718,6.3496,157.49,157.44,6.3516]
[1727663417106,6.3496,157.49,157.43,6.3519]
[1727663419111,6.3496,157.49,157.44,7.62150267]
[1727663419625,24.027864,157.54,157.45,6.3511]
[1727663419830,6.3488,157.51,157.46,1.2698993]
[1727663420131,24.027864,157.54,157.46,1.2698993]
[1727663420132,6.3484,157.52,157.46,1.2698993]
[1727663420321,6.3484,157.52,157.47,6.3503]
[1727663420637,6.3484,157.52,157.48,1.26975529]
[1727663422118,6.3489,157.51,157.46,6.3507]
[1727663422318,6.3492,157.5,157.45,6.3512]
[1727663422532,23.776884,157.54,157.44,15.8781]
[1727663422533,1.40345888,157.53,157.44,15.8781]
[1727663422848,6.3488,157.51,157.46,6.3507]
[1727663423148,1.40345888,157.53,157.45,6.3511]
[1727663423353,6.3492,157.5,157.45,6.3511]
[1727663423649,6.3488,157.51,157.45,6.3511]
[1727663423954,6.3488,157.51,157.44,31.74572895]
[1727663424249,6.3488,157.51,157.46,6.3508]
[1727663429941,6.3492,157.5,157.45,6.3511]
[1727663430147,6.3492,157.5,157.46,1.26993911]
[1727663432152,6.3492,157.5,157.46,7.62073911]
[1727663432351,6.3492,157.5,157.47,1.26991516]
[1727663433156,6.3507,157.47,157.42,6.352]
[1727663433333,6.3507,157.47,157.43,30.0]
[1727663433532,6.35,157.48,157.43,36.352]
[1727663433734,6.3492,157.5,157.45,6.3511]
[1727663434047,6.3492,157.5,157.46,1.26993232]
[1727663434626,6.3492,157.5,157.46,11.43059377]
[1727663435151,16.5028,157.56,157.48,10.16066145]
[1727663435332,16.5028,157.56,157.46,39.74743232]
[1727663435333,16.4308,157.6,157.52,10.16066145]
[1727663435535,16.4308,157.6,157.53,1.26941078]
[1727663435733,16.4308,157.6,157.54,10.16066145]
[1727663435963,6.3449,157.61,157.56,10.16066145]
[1727663436846,6.3449,157.61,157.57,1.26911977]
[1727663437044,6.343,157.66,157.58,10.16066145]
[1727663437254,6.5533,157.67,157.6,10.16066145]
[1727663437255,6.3432,157.65,157.6,10.16066145]
[1727663437438,6.3432,157.65,157.61,1.26880939]
[1727663438359,6.3432,157.65,157.59,6.3455]
[1727663438774,6.3432,157.65,157.6,1.26870677]
[1727663439071,6.3442,157.63,157.57,22.2114]
[1727663439366,6.3442,157.63,157.58,30.0]
[1727663439864,6.3449,157.61,157.58,30.0]
[1727663440180,15.8571,157.66,157.55,6.3469]
[1727663440354,24.027864,157.65,157.55,6.3469]
[1727663440553,23.776884,157.65,157.57,6.3463]
[1727663440755,6.344,157.63,157.58,1.26884114]
[1727663441563,15.8571,157.66,157.61,15.84202577]
[1727663441564,6.3427,157.66,157.61,15.84202577]
[1727663441943,6.3432,157.65,157.6,6.3108]
[1727663442264,6.344,157.63,157.6,6.3108]
[1727663442458,15.8534,157.7,157.6,6.3108]
[1727663442679,1.40345888,157.69,157.59,16.3275]
[1727663442967,6.3448,157.61,157.56,12.6574]
[1727663443265,15.8565,157.67,157.56,12.6574]
[1727663443266,6.3452,157.6,157.56,6.3108]
[1727663443468,6.3452,157.6,157.55,68.1361]
[1727663443469,24.027864,157.63,157.55,15.9213]
[1727663443650,6.3459,157.58,157.55,15.9213]
[1727663443990,23.776884,157.61,157.52,6.33]
[1727663444157,6.3463,157.57,157.52,12.6783]
[1727663444960,6.3459,157.59,157.53,1.26926522]
[1727663445155,15.8591,157.64,157.53,1.26926522]
[1727663445156,6.3452,157.6,157.53,16.09300577]
[1727663445360,6.3447,157.61,157.55,6.3471]
[1727663445562,6.3447,157.61,157.56,1.26895008]
[1727663445951,23.776884,157.63,157.55,6.3471]
[1727663445952,6.3451,157.6,157.55,6.3471]
[1727663446376,6.3458,157.59,157.54,15.8687]
[1727663446960,6.3458,157.59,157.54,22.2162]
[1727663448187,6.3467,157.56,157.52,6.33]
[1727663449390,23.776884,157.61,157.53,1.26935292]
[1727663450082,6.3455,157.6,157.53,1.26935292]
[1727663450587,6.2507,157.65,157.54,31.96110577]
[1727663450758,1.40345888,157.64,157.54,31.96110577]
[1727663451164,6.3447,157.62,157.56,6.3467]
[1727663451576,6.3449,157.61,157.56,6.3467]
[1727663455063,6.3443,157.62,157.57,23.53085094]
[1727663455368,23.776884,157.65,157.57,17.18485094]
[1727663456186,6.344,157.63,157.58,6.3459]
[1727663456385,6.344,157.63,157.59,1.26881877]
[1727663456781,6.3435,157.65,157.59,7.61421877]
[1727663458383,6.3435,157.65,157.6,6.345]
[1727663458597,6.3435,157.65,157.61,1.26865416]
[1727663460176,6.3438,157.64,157.58,28.2303]
[1727663460383,39.758174,157.68,157.59,30.0]
[1727663460571,39.758174,157.68,157.57,22.2622]
[1727663460572,0.12549,157.65,157.57,15.9159]
[1727663460764,6.3446,157.62,157.57,15.9159]
[1727663460971,6.3447,157.61,157.57,15.9159]
[1727663462301,6.3455,157.59,157.57,15.9159]
[1727663462465,6.1188,157.67,157.54,6.3831]
[1727663462466,6.3463,157.58,157.54,6.3831]
[1727663462670,6.346,157.58,157.55,30.0]
[1727663462883,6.3456,157.59,157.56,1.26922508]
[1727663463084,6.3448,157.61,157.56,6.3466]
[1727663463468,6.3452,157.6,157.55,6.3471]
[1727663465173,23.776884,157.61,157.54,22.2513]
[1727663465372,6.3464,157.57,157.54,6.3831]
[1727663465574,6.3464,157.57,157.53,15.0515]
[1727663465768,15.8616,157.62,157.53,21.3994]
[1727663465971,6.3448,157.61,157.56,6.3466]
[1727663466163,15.858,157.65,157.54,6.3472]
[1727663466368,6.3458,157.59,157.55,1.26913211]
[1727663466573,6.3443,157.62,157.56,15.8666]
[1727663466769,6.3448,157.61,157.56,22.2133]
[1727663466989,6.3452,157.6,157.56,22.2133]
[1727663467192,6.3448,157.61,157.56,22.2133]
[1727663467580,6.3448,157.61,157.56,52.2133]
[1727663469180,6.3454,157.6,157.57,1.26894565]
[1727663469804,6.3447,157.62,157.57,1.26894565]
[1727663470178,6.3449,157.61,157.57,1.26894565]
[1727663470384,6.3444,157.62,157.57,7.61524565]
[1727663472310,6.3444,157.62,157.57,6.3463]
[1727663472486,6.3448,157.61,157.56,22.2133]
[1727663473300,23.776884,157.64,157.56,22.2133]
[1727663473301,23.776884,157.64,157.56,15.8666]
[1727663473487,6.3439,157.63,157.58,6.3459]
[1727663473688,6.3439,157.63,157.59,1.2688397]
[1727663474902,6.3432,157.65,157.6,22.7567]
[1727663475104,6.3437,157.64,157.61,1.26863822]
[1727663475310,1.40345888,157.67,157.6,16.4116]
[1727663475489,6.3447,157.62,157.58,15.8641]
[1727663475807,6.3451,157.6,157.59,30.0]
[1727663476006,15.8596,157.64,157.56,16.4116]
[1727663476188,15.8596,157.64,157.53,12.8982]
[1727663476509,23.776884,157.62,157.53,12.8982]
[1727663476702,23.776884,157.6,157.55,30.0]
[1727663476885,1.40345888,157.59,157.55,30.0]
[1727663477209,6.3463,157.57,157.55,30.0]
[1727663478592,6.346,157.58,157.55,30.0]
[1727663478785,6.3467,157.56,157.55,30.0]
[1727663479412,6.3467,157.56,157.52,16.4116]
[1727663479588,6.3467,157.56,157.53,31.26940592]
[1727663479792,6.3472,157.55,157.53,31.26940592]
[1727663479988,31.7826,157.66,157.54,1.26941736]
[1727663480192,6.3455,157.6,157.54,6.3475]
[1727663481112,6.3455,157.6,157.54,36.3475]
[1727663483111,6.3455,157.6,157.55,1.26910576]
[1727663483315,6.3455,157.6,157.55,30.0]
[1727663483809,6.3455,157.6,157.55,36.3471]
[1727663484015,31.7826,157.66,157.56,1.26910522]
[1727663484200,6.3438,157.64,157.56,17.11113099]
[1727663484720,6.3438,157.64,157.59,6.3452]
[1727663485012,22.2849,157.69,157.6,1.26883154]
[1727663485237,6.3432,157.65,157.6,7.61383154]
[1727663486321,6.3427,157.66,157.61,6.3447]
[1727663486520,6.3414,157.7,157.64,6.3431]
[1727663486710,6.5881,157.73,157.65,1.268378]
[1727663486910,6.3415,157.69,157.65,1.268378]
[1727663487111,6.3415,157.69,157.63,15.8597]
[1727663487511,6.3415,157.69,157.61,6.39589]
[1727663487512,1.40345888,157.68,157.61,6.2704]
[1727663487700,6.3432,157.65,157.62,30.0]
[1727663487909,6.63815891,157.76,157.67,6.342]
[1727663488198,31.52062161,157.8,157.65,20.25098]
[1727663488199,6.3401,157.73,157.66,15.8564]
[1727663488403,6.3404,157.72,157.66,15.8564]
[1727663489105,6.3398,157.74,157.66,15.8564]
[1727663489310,6.3402,157.73,157.66,15.8564]
[1727663489600,20.0,157.79,157.64,14.6888]
[1727663489803,6.3409,157.71,157.64,14.6888]
[1727663490223,6.3412,157.7,157.64,6.2704]
[1727663490522,6.3412,157.7,157.62,45.8607]
[1727663490523,23.776884,157.68,157.62,52.2048]
[1727663490724,23.776884,157.69,157.62,22.2048]
[1727663491023,30.118584,157.69,157.62,22.2048]
[1727663491815,23.776884,157.67,157.62,15.8607]
[1727663492006,6.3421,157.68,157.62,22.2049]
[1727663492204,6.3421,157.68,157.63,1.26843087]
[1727663492845,23.776884,157.69,157.63,1.26843087]
[1727663493019,30.118484,157.69,157.63,1.26843087]
[1727663493226,6.3409,157.71,157.63,1.26843087]
[1727663493421,6.3409,157.71,157.65,6.343]
[1727663493718,6.3409,157.71,157.66,1.26821901]
[1727663494633,23.776884,157.7,157.66,1.26821901]
[1727663495019,30.117984,157.7,157.66,1.26821901]
[1727663495636,23.776884,157.7,157.66,7.61091901]
[1727663495946,23.776884,157.7,157.67,1.26823648]
[1727663496131,15.8452,157.78,157.67,1.26823648]
[1727663496132,6.3407,157.71,157.67,1.26823648]
[1727663496331,15.8452,157.78,157.67,1.26823648]
[1727663496540,6.3407,157.72,157.66,6.3427]
[1727663496713,6.3392,157.75,157.69,6.3414]
[1727663496928,6.3404,157.72,157.67,1.26808832]
[1727663497225,6.3407,157.71,157.65,6.3429]
[1727663497416,6.3407,157.71,157.66,1.26821317]
[1727663497617,23.776884,157.7,157.66,1.26821317]
[1727663499047,6.3417,157.69,157.64,15.8584]
[1727663499329,23.776884,157.7,157.65,31.26834516]
[1727663499727,6.3415,157.69,157.65,31.26834516]
[1727663499923,6.3419,157.68,157.65,30.0]
[1727663500138,6.3419,157.68,157.61,25.33600102]
[1727663500139,6.3419,157.68,157.62,6.344]
[1727663500340,6.3419,157.68,157.63,30.0]
[1727663500630,6.3431,157.66,157.6,37.265]
[1727663501339,6.3431,157.66,157.61,30.0]
[1727663502229,6.3431,157.66,157.61,36.3447]
[1727663502625,6.3431,157.66,157.61,6.3447]
[1727663504531,0.12549,157.7,157.58,25.33600102]
[1727663504532,23.776884,157.65,157.58,6.3456]
[1727663505435,6.3439,157.63,157.57,6.3463]
[1727663505633,6.3439,157.63,157.59,30.0]
[1727663507650,6.3451,157.6,157.59,30.0]